[Event "Guimaraes Open 2019"]
[Site "Guimaraes"]
[Date "2019.09.01"]
[Round "7.17"]
[White "Fidalgo, Andre Neves"]
[Black "Bukhteeva, Viktoria"]
[Result "1/2-1/2"]
[ECO "A09"]
[WhiteElo "2261"]
[BlackElo "2128"]
[Annotator "NA"]
[PlyCount "51"]
[EventDate "2019.08.28"]
[EventType "swiss"]
[EventCountry "POR"]
[SourceTitle "playchess.com"]
[Source "ChessBase"]
[SourceQuality "1"]
[TimeControl "5400+30"]

1. Nf3 {[%emt 0:00:00]} d5 {[%emt 0:00:00]} 2. c4 {[%emt 0:00:00]} d4 {[%emt 0:00:00]} 3. e3 {[%emt 0:00:00]} Nc6 {[%emt 0:00:01]} 4. b4 {[%emt 0:10:19]} Bg4 {[%emt 0:06:22]} 5. b5 {[%emt 0:04:11]} Ne5 {[%emt 0:01:04]} 6. Bb2 {[%emt 0:00:37]} Bxf3 {[%emt 0:03:42]} 7. gxf3 {[%emt 0:00:14]} c5 {[%emt 0:00:05]} 8. f4 {[%emt 0:06:59]} Ng6 {[%emt 0:00:26]} 9. Qf3 {[%emt 0:02:15]} Qb6 {[%emt 0:02:19]} 10. a4 {[%emt 0:00:44]} a5 {[%emt 0:01:47]} 11. Bg2 {[%emt 0:01:14]} O-O-O {[%emt 0:00:50]} 12. h4 {[%emt 0:06:39]} h5 {[%emt 0:02:40]} 13. exd4 {[%emt 0:00:05]} e6 {[%emt 0:00:02]} 14. f5 {[%emt 0:05:01]} exf5 {[%emt 0:03:16]} 15. Qxf5+ {[%emt 0:08:52]} Kb8 {[%emt 0:00:07]} 16. d5 {[%emt 0:00:05]} Nh6 {[%emt 0:01:26]} 17. Qf3 {[%emt 0:00:31]} Bd6 {[%emt 0:01:05]} 18. Qxh5 {[%emt 0:07:46]} Nf4 {[%emt 0:03:25]} 19. Qf3 {[%emt 0:01:49]} Nf5 {[%emt 0:00:09]} 20. h5 {[%emt 0:01:09]} Rde8+ {[%emt 0:00:04]} 21. Kd1 {[%emt 0:01:20]} Qd8 {[%emt 0:00:04]} 22. Qg4 {[%emt 0:17:57]} Nh6 {[%emt 0:00:10]} 23. Qf3 {[%emt 0:01:22]} Nf5 {[%emt 0:00:04]} 24. Qg4 {[%emt 0:00:05]} Nh6 {[%emt 0:00:04]} 25. Qf3 {[%emt 0:00:03]} Nf5 {[%emt 0:00:04]} 26. Qg4 {[%emt 0:00:07]} 1/2-1/2

[Event "Guimaraes Open 2019"]
[Site "Guimaraes"]
[Date "2019.09.01"]
[Round "7.18"]
[White "Lopez Gonzalez, Alfonso"]
[Black "Sismeiro, Miguel"]
[Result "1-0"]
[ECO "D86"]
[WhiteElo "2219"]
[BlackElo "2054"]
[Annotator "NA"]
[PlyCount "155"]
[EventDate "2019.08.28"]
[EventType "swiss"]
[EventCountry "POR"]
[SourceTitle "playchess.com"]
[Source "ChessBase"]
[SourceQuality "1"]
[TimeControl "5400+30"]

1. d4 {[%emt 0:00:00]} Nf6 {[%emt 0:03:16]} 2. c4 {[%emt 0:00:00]} g6 {[%emt 0:00:07]} 3. Nc3 {[%emt 0:00:00]} d5 {[%emt 0:00:02]} 4. cxd5 {[%emt 0:00:00]} Nxd5 {[%emt 0:00:04]} 5. e4 {[%emt 0:00:00]} Nxc3 {[%emt 0:00:04]} 6. bxc3 {[%emt 0:00:00]} Bg7 {[%emt 0:00:04]} 7. Bc4 {[%emt 0:00:04]} O-O {[%emt 0:00:12]} 8. Ne2 {[%emt 0:00:05]} Nc6 {[%emt 0:03:50]} 9. O-O {[%emt 0:01:03]} b6 {[%emt 0:00:03]} 10. Be3 {[%emt 0:05:07]} Bb7 {[%emt 0:00:30]} 11. f3 {[%emt 0:01:05]} Na5 {[%emt 0:02:21]} 12. Bd3 {[%emt 0:05:26]} e5 {[%emt 0:02:23]} 13. d5 {[%emt 0:06:21]} c5 {[%emt 0:02:31]} 14. c4 {[%emt 0:03:00]} Bc8 {[%emt 0:00:44]} 15. Nc1 {[%emt 0:07:38]} Nb7 {[%emt 0:02:00]} 16. Nb3 {[%emt 0:04:14]} Nd6 {[%emt 0:02:57]} 17. a4 {[%emt 0:01:50]} a5 {[%emt 0:05:13]} 18. Nd2 {[%emt 0:02:00]} f5 {[%emt 0:02:45]} 19. Rb1 {[%emt 0:05:22]} f4 {[%emt 0:04:08]} 20. Bf2 {[%emt 0:00:02]} g5 {[%emt 0:03:59]} 21. h3 {[%emt 0:24:38]} h5 {[%emt 0:02:58]} 22. Be2 {[%emt 0:02:51]} Bd7 {[%emt 0:02:09]} 23. Re1 {[%emt 0:01:02]} Rb8 {[%emt 0:03:00]} 24. Kf1 {[%emt 0:03:38]} Qe8 {[%emt 0:00:46]} 25. Ra1 {[%emt 0:00:10]} Qg6 {[%emt 0:00:05]} 26. Qb3 {[%emt 0:07:02]} Kf7 {[%emt 0:01:27]} 27. Bd1 {[%emt 0:01:56]} g4 {[%emt 0:01:41]} 28. hxg4 {[%emt 0:00:52]} hxg4 {[%emt 0:00:05]} 29. fxg4 {[%emt 0:00:03]} Bxg4 {[%emt 0:01:56]} 30. Bf3 {[%emt 0:00:03]} Ke7 {[%emt 0:00:56]} 31. Qd3 {[%emt 0:03:26]} Rh8 {[%emt 0:01:39]} 32. Ke2 {[%emt 0:02:20]} Rh2 {[%emt 0:00:16]} 33. Rg1 {[%emt 0:01:27]} Kd7 {[%emt 0:14:54]} 34. g3 {[%emt 0:03:50]} Bxf3+ {[%emt 0:06:17]} 35. Qxf3 {[%emt 0:00:12]} Qf6 {[%emt 0:07:20]} 36. gxf4 {[%emt 0:01:54]} Bh6 {[%emt 0:00:04]} 37. Rh1 {[%emt 0:02:21]} Rxf2+ {[%emt 0:09:43]} 38. Qxf2 {[%emt 0:00:01]} Rf8 {[%emt 0:00:22]} 39. Qh4 Bxf4 {[%emt 0:02:03]} 40. Qxf6 {[%emt 0:01:50]} Rxf6 {[%emt 0:00:04]} 41. Raf1 {[%emt 0:01:41]} Rg6 {[%emt 0:00:21]} 42. Rfg1 {[%emt 0:00:46]} Rxg1 {[%emt 0:00:14]} 43. Rxg1 {[%emt 0:00:03]} Bxd2 {[%emt 0:00:07]} 44. Rg7+ {[%emt 0:00:05]} Kd8 {[%emt 0:00:17]} 45. Kxd2 {[%emt 0:00:06]} Nxc4+ {[%emt 0:00:08]} 46. Kc3 {[%emt 0:00:31]} Nd6 {[%emt 0:00:46]} 47. Kd3 {[%emt 0:00:10]} c4+ {[%emt 0:00:23]} 48. Ke3 {[%emt 0:00:08]} c3 {[%emt 0:00:38]} 49. Kd3 {[%emt 0:01:29]} c2 {[%emt 0:00:05]} 50. Rg1 {[%emt 0:00:46]} Nb7 {[%emt 0:00:12]} 51. Kxc2 {[%emt 0:01:02]} Nc5 {[%emt 0:00:04]} 52. Rg5 {[%emt 0:02:25]} Nxe4 {[%emt 0:00:17]} 53. Rxe5 {[%emt 0:00:03]} Nc5 {[%emt 0:00:04]} 54. Kc3 {[%emt 0:01:08]} Nxa4+ {[%emt 0:02:38]} 55. Kc4 {[%emt 0:00:05]} Kd7 {[%emt 0:01:35]} 56. Re6 {[%emt 0:00:54]} Kc7 {[%emt 0:00:28]} 57. Rc6+ {[%emt 0:00:28]} Kd7 {[%emt 0:00:05]} 58. Kb5 {[%emt 0:00:57]} Nb2 {[%emt 0:00:11]} 59. Rxb6 {[%emt 0:00:41]} Nd3 {[%emt 0:00:38]} 60. Kc4 {[%emt 0:00:34]} Ne5+ {[%emt 0:00:18]} 61. Kd4 {[%emt 0:00:38]} Nf3+ {[%emt 0:00:19]} 62. Kc5 {[%emt 0:00:28]} Ne5 {[%emt 0:00:44]} 63. Rb7+ {[%emt 0:00:29]} Kc8 {[%emt 0:00:06]} 64. Ra7 {[%emt 0:00:27]} Nd7+ {[%emt 0:00:21]} 65. Kd4 {[%emt 0:00:37]} Nb6 {[%emt 0:00:39]} 66. Rxa5 {[%emt 0:00:08]} Kc7 {[%emt 0:00:05]} 67. Rc5+ {[%emt 0:00:15]} Kd7 {[%emt 0:00:07]} 68. Rc1 {[%emt 0:00:10]} Nc8 {[%emt 0:00:16]} 69. Rh1 {[%emt 0:00:12]} Ne7 {[%emt 0:00:29]} 70. Ra1 {[%emt 0:00:23]} Nc8 {[%emt 0:00:06]} 71. Ke5 {[%emt 0:00:03]} Nb6 {[%emt 0:00:08]} 72. Ra7+ {[%emt 0:00:09]} Kd8 {[%emt 0:00:08]} 73. Rh7 {[%emt 0:00:16]} Nc4+ {[%emt 0:00:06]} 74. Ke6 {[%emt 0:00:08]} Kc8 {[%emt 0:00:17]} 75. d6 {[%emt 0:00:09]} Nb6 {[%emt 0:00:08]} 76. d7+ {[%emt 0:00:04]} Kc7 {[%emt 0:00:08]} 77. Rh8 {[%emt 0:00:23]} Nxd7 {[%emt 0:00:05]} 78. Rh7 1-0

[Event "Guimaraes Open 2019"]
[Site "Guimaraes"]
[Date "2019.09.01"]
[Round "7.19"]
[White "Lopez Quevedo, Eduardo"]
[Black "Silva, Pedro Gil Ferreira D"]
[Result "1-0"]
[ECO "A46"]
[WhiteElo "2188"]
[BlackElo "1960"]
[Annotator "NA"]
[PlyCount "49"]
[EventDate "2019.08.28"]
[EventType "swiss"]
[EventCountry "POR"]
[SourceTitle "playchess.com"]
[Source "ChessBase"]
[SourceQuality "1"]
[TimeControl "5400+30"]

1. d4 {[%emt 0:00:13]} Nf6 {[%emt 0:00:00]} 2. Nf3 {[%emt 0:00:21]} e6 {[%emt 0:00:00]} 3. Bf4 {[%emt 0:00:21]} c5 {[%emt 0:00:35]} 4. e3 {[%emt 0:00:46]} d5 {[%emt 0:00:07]} 5. Nbd2 {[%emt 0:01:01]} Nc6 {[%emt 0:00:36]} 6. c3 {[%emt 0:01:10]} Bd6 {[%emt 0:00:22]} 7. Bg3 {[%emt 0:00:10]} O-O {[%emt 0:00:21]} 8. Bd3 {[%emt 0:01:17]} b6 {[%emt 0:00:57]} 9. Ne5 {[%emt 0:02:45]} Qc7 {[%emt 0:01:47]} 10. f4 {[%emt 0:03:47]} Bb7 {[%emt 0:00:53]} 11. Bh4 {[%emt 0:22:58]} Be7 {[%emt 0:09:59]} 12. Qf3 {[%emt 0:12:40]} g6 {[%emt 0:37:27]} 13. Bg5 {[%emt 0:06:53]} Ne4 {[%emt 0:15:17]} 14. Bxe7 {[%emt 0:01:22]} Nxd2 {[%emt 0:00:24]} 15. Kxd2 {[%emt 0:00:07]} Nxe7 {[%emt 0:00:14]} 16. Qh3 {[%emt 0:08:04]} Qd6 {[%emt 0:04:46]} 17. Qh6 {[%emt 0:02:14]} Nf5 {[%emt 0:02:50]} 18. Bxf5 {[%emt 0:02:02]} exf5 {[%emt 0:00:04]} 19. h4 {[%emt 0:03:38]} f6 {[%emt 0:07:54]} 20. Nxg6 {[%emt 0:01:51]} hxg6 {[%emt 0:00:06]} 21. Qxg6+ {[%emt 0:00:07]} Kh8 {[%emt 0:00:18]} 22. Qh6+ {[%emt 0:02:16]} Kg8 {[%emt 0:00:04]} 23. Rh3 {[%emt 0:02:49]} Ba6 {[%emt 0:01:43]} 24. Qg6+ {[%emt 0:00:21]} Kh8 {[%emt 0:00:05]} 25. Qh5+ {[%emt 0:00:06]} 1-0

[Event "Guimaraes Open 2019"]
[Site "Guimaraes"]
[Date "2019.09.01"]
[Round "7.21"]
[White "De Prado Rodriguez, Oscar Bruno"]
[Black "Fernandes, Joao Pedro Murtinho"]
[Result "1-0"]
[ECO "A45"]
[WhiteElo "2155"]
[BlackElo "2044"]
[Annotator "NA"]
[PlyCount "57"]
[EventDate "2019.08.28"]
[EventType "swiss"]
[EventCountry "POR"]
[SourceTitle "playchess.com"]
[Source "ChessBase"]
[SourceQuality "1"]
[TimeControl "5400+30"]

1. d4 {[%emt 0:01:41]} Nf6 {[%emt 0:00:00]} 2. Bf4 {[%emt 0:00:13]} e6 {[%emt 0:00:08]} 3. e3 {[%emt 0:00:05]} b6 {[%emt 0:00:17]} 4. Nf3 {[%emt 0:00:28]} Bb7 {[%emt 0:00:07]} 5. Bd3 {[%emt 0:00:16]} g6 {[%emt 0:00:17]} 6. Nbd2 {[%emt 0:00:30]} Bg7 {[%emt 0:00:30]} 7. Qe2 {[%emt 0:03:07]} d6 8. e4 {[%emt 0:00:30]} Nc6 {[%emt 0:08:34]} 9. c3 {[%emt 0:03:34]} O-O {[%emt 0:01:23]} 10. O-O-O {[%emt 0:04:09]} Na5 {[%emt 0:10:07]} 11. h4 {[%emt 0:03:02]} c5 {[%emt 0:07:39]} 12. dxc5 bxc5 13. h5 {[%emt 0:01:33]} Qb6 {[%emt 0:12:09]} 14. hxg6 {[%emt 0:01:19]} fxg6 {[%emt 0:00:23]} 15. Ng5 {[%emt 0:07:04]} Rab8 {[%emt 0:03:54]} 16. Nc4 {[%emt 0:00:43]} Nxc4 {[%emt 0:00:30]} 17. Bxc4 {[%emt 0:00:01]} d5 {[%emt 0:04:55]} 18. Bxb8 {[%emt 0:01:44]} Rxb8 {[%emt 0:00:07]} 19. exd5 {[%emt 0:00:18]} exd5 {[%emt 0:00:55]} 20. Bb3 {[%emt 0:04:36]} c4 {[%emt 0:02:19]} 21. Ba4 {[%emt 0:02:42]} Bc8 {[%emt 0:03:43]} 22. Be8 {[%emt 0:06:40]} Bf5 {[%emt 0:06:28]} 23. Bf7+ {[%emt 0:00:28]} Kh8 {[%emt 0:03:49]} 24. Bxd5 {[%emt 0:00:35]} Nxd5 {[%emt 0:00:50]} 25. Rxh7+ {[%emt 0:02:25]} Kg8 {[%emt 0:00:04]} 26. Rxd5 {[%emt 0:05:55]} Bxc3 {[%emt 0:00:22]} 27. Rd8+ {[%emt 0:00:30]} Rxd8 {[%emt 0:00:42]} 28. Qxc4+ {[%emt 0:00:03]} Be6 {[%emt 0:00:18]} 29. Qxc3 {[%emt 0:00:27]} 1-0

[Event "Guimaraes Open 2019"]
[Site "Guimaraes"]
[Date "2019.09.01"]
[Round "7.22"]
[White "Torrijos Garcia, Borja"]
[Black "Reboredo Martinez, Claudio"]
[Result "1-0"]
[ECO "A20"]
[WhiteElo "2153"]
[BlackElo "1931"]
[Annotator "NA"]
[PlyCount "73"]
[EventDate "2019.08.28"]
[EventType "swiss"]
[EventCountry "POR"]
[SourceTitle "playchess.com"]
[Source "ChessBase"]
[SourceQuality "1"]
[TimeControl "5400+30"]

1. c4 {[%emt 0:00:36]} e5 {[%emt 0:00:28]} 2. g3 {[%emt 0:00:07]} g6 {[%emt 0:00:06]} 3. Bg2 {[%emt 0:00:12]} Bg7 {[%emt 0:00:04]} 4. Nc3 {[%emt 0:00:57]} Ne7 {[%emt 0:00:05]} 5. e3 {[%emt 0:00:24]} O-O {[%emt 0:00:11]} 6. Nge2 {[%emt 0:00:06]} d6 {[%emt 0:01:05]} 7. O-O {[%emt 0:00:52]} Nbc6 {[%emt 0:00:25]} 8. a3 {[%emt 0:01:03]} a5 {[%emt 0:03:20]} 9. Qc2 {[%emt 0:02:30]} f5 {[%emt 0:08:22]} 10. d3 {[%emt 0:00:48]} Kh8 {[%emt 0:03:34]} 11. Bd2 {[%emt 0:00:51]} g5 {[%emt 0:00:55]} 12. f4 {[%emt 0:04:45]} Ng6 {[%emt 0:01:05]} 13. Nd5 {[%emt 0:07:27]} exf4 {[%emt 0:02:19]} 14. exf4 {[%emt 0:02:15]} Nd4 {[%emt 0:07:56]} 15. Nxd4 {[%emt 0:00:32]} Bxd4+ {[%emt 0:00:02]} 16. Kh1 {[%emt 0:00:38]} c6 {[%emt 0:00:26]} 17. Bc3 {[%emt 0:04:11]} Bxc3 {[%emt 0:00:42]} 18. Qxc3+ {[%emt 0:01:34]} Kg8 {[%emt 0:00:25]} 19. Ne3 {[%emt 0:00:12]} gxf4 {[%emt 0:01:00]} 20. gxf4 {[%emt 0:03:06]} Qf6 {[%emt 0:04:43]} 21. Rae1 {[%emt 0:06:25]} Bd7 {[%emt 0:00:23]} 22. Qxf6 {[%emt 0:08:48]} Rxf6 {[%emt 0:00:24]} 23. Nc2 {[%emt 0:00:03]} Rff8 {[%emt 0:08:06]} 24. Nd4 {[%emt 0:29:08]} Kf7 {[%emt 0:00:49]} 25. Bh3 {[%emt 0:01:48]} Kf6 {[%emt 0:00:11]} 26. Kg2 {[%emt 0:06:18]} Rae8 {[%emt 0:01:05]} 27. Kf3 {[%emt 0:03:38]} c5 {[%emt 0:01:31]} 28. Ne2 {[%emt 0:00:01]} Re7 {[%emt 0:00:41]} 29. Ng3 {[%emt 0:01:36]} Bc6+ {[%emt 0:01:26]} 30. Kf2 {[%emt 0:00:01]} Rxe1 {[%emt 0:05:47]} 31. Nh5+ {[%emt 0:00:52]} Kf7 {[%emt 0:01:05]} 32. Rxe1 {[%emt 0:00:12]} Re8 {[%emt 0:06:17]} 33. Rxe8 {[%emt 0:00:28]} Kxe8 {[%emt 0:00:02]} 34. Bxf5 {[%emt 0:00:40]} Kf7 {[%emt 0:00:10]} 35. Be4 {[%emt 0:01:03]} Bd7 36. Bxb7 Bg4 37. Bf3 1-0

[Event "Guimaraes Open 2019"]
[Site "Guimaraes"]
[Date "2019.09.01"]
[Round "7.23"]
[White "Gonzalez Eiris, Daniel"]
[Black "Santos, Jose Guilherme B Lim"]
[Result "0-1"]
[ECO "B53"]
[WhiteElo "1977"]
[BlackElo "2213"]
[Annotator "NA"]
[PlyCount "184"]
[EventDate "2019.08.28"]
[EventType "swiss"]
[EventCountry "POR"]
[SourceTitle "playchess.com"]
[Source "ChessBase"]
[SourceQuality "1"]
[TimeControl "5400+30"]

1. e4 {[%emt 0:02:48]} c5 {[%emt 0:00:00]} 2. Nf3 {[%emt 0:00:06]} d6 {[%emt 0:00:00]} 3. d4 {[%emt 0:00:04]} cxd4 {[%emt 0:00:00]} 4. Qxd4 {[%emt 0:00:04]} e5 {[%emt 0:00:29]} 5. Qd3 {[%emt 0:01:25]} Nd7 {[%emt 0:02:19]} 6. Nc3 {[%emt 0:03:00]} h6 {[%emt 0:01:31]} 7. Be3 {[%emt 0:01:06]} a6 {[%emt 0:03:47]} 8. Nd2 {[%emt 0:14:27]} b5 {[%emt 0:24:14]} 9. a4 {[%emt 0:04:24]} b4 {[%emt 0:02:20]} 10. Nd5 {[%emt 0:00:14]} Ngf6 {[%emt 0:12:49]} 11. a5 {[%emt 0:13:41]} Bb7 {[%emt 0:08:27]} 12. Nxb4 {[%emt 0:09:15]} Be7 {[%emt 0:01:01]} 13. Nd5 Nxd5 {[%emt 0:04:55]} 14. exd5 {[%emt 0:01:25]} O-O {[%emt 0:00:07]} 15. Nc4 {[%emt 0:04:14]} f5 {[%emt 0:01:42]} 16. Nb6 {[%emt 0:06:27]} f4 {[%emt 0:07:07]} 17. Nxd7 {[%emt 0:03:31]} fxe3 {[%emt 0:06:47]} 18. Nxf8 {[%emt 0:00:05]} exf2+ {[%emt 0:00:08]} 19. Kd1 {[%emt 0:01:49]} Qxf8 {[%emt 0:00:11]} 20. Be2 {[%emt 0:00:49]} Qf4 {[%emt 0:01:39]} 21. Bf3 {[%emt 0:01:51]} Bg5 {[%emt 0:01:16]} 22. b3 {[%emt 0:01:02]} Rf8 {[%emt 0:05:29]} 23. Ke2 {[%emt 0:04:51]} Bc8 {[%emt 0:03:19]} 24. g3 {[%emt 0:01:48]} Qf6 {[%emt 0:05:10]} 25. h4 {[%emt 0:00:23]} e4 {[%emt 0:00:03]} 26. Qxe4 {[%emt 0:01:14]} Qf7 {[%emt 0:01:57]} 27. hxg5 {[%emt 0:06:13]} Re8 {[%emt 0:00:24]} 28. Qxe8+ {[%emt 0:01:57]} Qxe8+ {[%emt 0:00:04]} 29. Kxf2 {[%emt 0:00:07]} Qg6 {[%emt 0:01:30]} 30. Rae1 {[%emt 0:05:58]} hxg5 {[%emt 0:00:19]} 31. Re2 {[%emt 0:04:02]} g4 {[%emt 0:00:54]} 32. Be4 {[%emt 0:00:32]} Bf5 {[%emt 0:01:32]} 33. Rhe1 {[%emt 0:00:58]} Qf6 {[%emt 0:00:07]} 34. Kg1 {[%emt 0:03:00]} Qd4+ {[%emt 0:00:59]} 35. Kh1 {[%emt 0:00:02]} Bxe4+ {[%emt 0:01:05]} 36. Rxe4 {[%emt 0:00:05]} Qxd5 {[%emt 0:00:05]} 37. b4 {[%emt 0:00:58]} Qf5 {[%emt 0:02:13]} 38. Rf4 {[%emt 0:02:45]} Qxc2 {[%emt 0:00:12]} 39. Ree4 {[%emt 0:00:44]} Qd1+ {[%emt 0:00:53]} 40. Kg2 {[%emt 0:00:17]} d5 {[%emt 0:00:06]} 41. Rd4 {[%emt 0:00:32]} Qe2+ {[%emt 0:00:04]} 42. Kg1 {[%emt 0:00:17]} g5 {[%emt 0:00:34]} 43. Rxg4 {[%emt 0:00:09]} Kf7 {[%emt 0:00:11]} 44. b5 {[%emt 0:02:24]} Qxb5 {[%emt 0:02:18]} 45. Ra4 {[%emt 0:00:53]} Kf6 {[%emt 0:00:30]} 46. Rgb4 {[%emt 0:00:20]} Qe2 {[%emt 0:00:04]} 47. Rg4 {[%emt 0:00:38]} Kf5 {[%emt 0:00:34]} 48. Rgd4 {[%emt 0:00:14]} Ke5 {[%emt 0:00:19]} 49. Rg4 {[%emt 0:00:09]} Kd6 {[%emt 0:00:08]} 50. Rgd4 {[%emt 0:00:50]} Kc5 {[%emt 0:00:13]} 51. Rg4 {[%emt 0:00:05]} Kd6 {[%emt 0:01:34]} 52. Rgd4 {[%emt 0:00:27]} Kc6 {[%emt 0:00:03]} 53. Rdb4 {[%emt 0:00:30]} Qf3 {[%emt 0:01:25]} 54. Kh2 {[%emt 0:00:57]} Kc5 {[%emt 0:00:05]} 55. Rg4 {[%emt 0:00:39]} Qf2+ {[%emt 0:00:34]} 56. Kh1 {[%emt 0:00:15]} Kd6 {[%emt 0:00:54]} 57. Rad4 {[%emt 0:00:33]} Kc6 {[%emt 0:00:36]} 58. Rb4 {[%emt 0:00:37]} Kd6 {[%emt 0:00:36]} 59. Rbd4 {[%emt 0:00:25]} Kc5 {[%emt 0:00:48]} 60. Ra4 {[%emt 0:00:08]} d4 {[%emt 0:00:27]} 61. Rxg5+ {[%emt 0:00:51]} Kd6 {[%emt 0:00:11]} 62. Rg6+ {[%emt 0:00:40]} Ke5 {[%emt 0:00:06]} 63. Rg5+ {[%emt 0:00:32]} Kf6 {[%emt 0:00:06]} 64. Rg8 {[%emt 0:00:21]} Qe1+ {[%emt 0:00:37]} 65. Kh2 {[%emt 0:00:47]} Qe2+ {[%emt 0:00:07]} 66. Kh3 {[%emt 0:00:25]} Qh5+ {[%emt 0:00:05]} 67. Kg2 {[%emt 0:00:07]} Qd5+ {[%emt 0:00:04]} 68. Kf2 {[%emt 0:00:26]} Qxg8 {[%emt 0:00:06]} 69. Rxd4 {[%emt 0:00:03]} Qa2+ {[%emt 0:00:07]} 70. Ke3 {[%emt 0:00:03]} Qxa5 {[%emt 0:00:06]} 71. Ke4 {[%emt 0:00:55]} Qe5+ {[%emt 0:00:11]} 72. Kd3 {[%emt 0:00:08]} Qxg3+ {[%emt 0:00:05]} 73. Kc4 {[%emt 0:00:04]} Qc7+ {[%emt 0:00:11]} 74. Kb3 {[%emt 0:00:20]} Ke5 {[%emt 0:00:07]} 75. Rb4 {[%emt 0:00:12]} Kd5 {[%emt 0:00:12]} 76. Ka4 {[%emt 0:00:09]} Kc5 {[%emt 0:00:17]} 77. Rb2 {[%emt 0:00:22]} Qf4+ {[%emt 0:00:15]} 78. Ka3 {[%emt 0:00:06]} Qc1 {[%emt 0:00:21]} 79. Kb3 {[%emt 0:00:30]} Qc4+ {[%emt 0:01:04]} 80. Ka3 {[%emt 0:00:04]} Qc3+ {[%emt 0:00:03]} 81. Ka2 {[%emt 0:01:15]} a5 {[%emt 0:00:24]} 82. Rb3 {[%emt 0:00:11]} Qd2+ {[%emt 0:00:27]} 83. Rb2 {[%emt 0:00:07]} Qd5+ {[%emt 0:00:12]} 84. Ka3 {[%emt 0:00:17]} Qd1 {[%emt 0:00:37]} 85. Rc2+ {[%emt 0:00:40]} Kb5 {[%emt 0:00:33]} 86. Rb2+ {[%emt 0:00:04]} Ka6 {[%emt 0:00:05]} 87. Ra2 {[%emt 0:00:19]} Qb1 {[%emt 0:00:40]} 88. Rb2 {[%emt 0:00:48]} Qa1+ {[%emt 0:00:08]} 89. Kb3 {[%emt 0:00:09]} a4+ {[%emt 0:00:05]} 90. Kc2 {[%emt 0:00:14]} a3 {[%emt 0:00:06]} 91. Rb1 {[%emt 0:00:36]} Qa2+ {[%emt 0:00:12]} 92. Kc1 {[%emt 0:00:05]} Qc4+ {[%emt 0:00:02]} 0-1

[Event "Guimaraes Open 2019"]
[Site "Guimaraes"]
[Date "2019.09.01"]
[Round "7.24"]
[White "Nieves Cabanes, Javier"]
[Black "Marinc, Damir"]
[Result "1-0"]
[ECO "A13"]
[WhiteElo "2211"]
[BlackElo "1895"]
[Annotator "NA"]
[PlyCount "69"]
[EventDate "2019.08.28"]
[EventType "swiss"]
[EventCountry "POR"]
[SourceTitle "playchess.com"]
[Source "ChessBase"]
[SourceQuality "1"]
[TimeControl "5400+30"]

1. Nf3 {[%emt 0:00:00]} e6 {[%emt 0:07:19]} 2. c4 {[%emt 0:00:52]} d5 {[%emt 0:00:12]} 3. d4 {[%emt 0:01:18]} c6 {[%emt 0:00:11]} 4. Nc3 {[%emt 0:00:57]} f5 {[%emt 0:00:09]} 5. Bf4 {[%emt 0:01:05]} Nf6 {[%emt 0:00:17]} 6. e3 {[%emt 0:01:21]} Be7 {[%emt 0:00:22]} 7. Bd3 {[%emt 0:02:13]} O-O {[%emt 0:01:09]} 8. h3 {[%emt 0:04:42]} Ne4 {[%emt 0:03:38]} 9. g4 {[%emt 0:04:06]} Kh8 {[%emt 0:06:32]} 10. gxf5 {[%emt 0:05:59]} exf5 {[%emt 0:00:03]} 11. cxd5 {[%emt 0:00:30]} Nxc3 {[%emt 0:03:48]} 12. bxc3 {[%emt 0:00:11]} cxd5 {[%emt 0:00:51]} 13. h4 {[%emt 0:03:24]} Nc6 {[%emt 0:00:39]} 14. Ng5 {[%emt 0:02:01]} Bxg5 {[%emt 0:05:40]} 15. hxg5 {[%emt 0:00:28]} g6 {[%emt 0:00:01]} 16. Rb1 {[%emt 0:07:23]} Rf7 {[%emt 0:04:47]} 17. Qa4 {[%emt 0:05:16]} a6 {[%emt 0:04:27]} 18. c4 {[%emt 0:05:31]} Be6 {[%emt 0:00:53]} 19. c5 {[%emt 0:00:54]} Qa5+ {[%emt 0:10:25]} 20. Qxa5 {[%emt 0:00:22]} Nxa5 {[%emt 0:00:02]} 21. Rb6 {[%emt 0:00:27]} Re8 {[%emt 0:01:03]} 22. Kd2 {[%emt 0:05:06]} Kg8 {[%emt 0:15:47]} 23. Kc3 {[%emt 0:01:40]} Rd7 {[%emt 0:01:10]} 24. Rhb1 {[%emt 0:00:58]} Rf7 {[%emt 0:10:25]} 25. Rd6 {[%emt 0:04:08]} Rd7 {[%emt 0:02:41]} 26. Rxd7 {[%emt 0:00:38]} Bxd7 {[%emt 0:00:05]} 27. Bc7 {[%emt 0:00:07]} Nc4 {[%emt 0:02:48]} 28. Rxb7 {[%emt 0:00:09]} Bb5 {[%emt 0:01:08]} 29. Kb4 {[%emt 0:07:26]} Bc6 {[%emt 0:01:11]} 30. Ra7 {[%emt 0:00:54]} Ra8 {[%emt 0:00:05]} 31. Rxa8+ {[%emt 0:01:15]} Bxa8 {[%emt 0:00:01]} 32. Bxc4 {[%emt 0:00:32]} dxc4 {[%emt 0:00:02]} 33. Kxc4 {[%emt 0:00:06]} Kf7 {[%emt 0:00:20]} 34. d5 {[%emt 0:00:10]} Bb7 {[%emt 0:00:47]} 35. c6 {[%emt 0:00:20]} 1-0